Cogmind - Beta 16 @@@ ROGUE MODE // 2025.12.07 @ 13:44:26 Player: PopcornMaze Result: Destroyed by D-53 Grenadier with Mini Grenade Launcher Performance ------------- Evolutions (0) 0 Regions Visited (2) 400 Robots Destroyed (11) 55 Value Destroyed (247) 247 Prototype IDs (0) 0 Alien Tech Used (0) 0 Bonus (0) 0 TOTAL SCORE: 702 Bonus ------- None Cogmind --------- Core Integrity 0/250 Matter 290/300 Energy 85/100 System Corruption 8% Temperature Cool (0) Movement Flying (120) Ox1 Location -10/Mines Parts ------- > --- POWER (1) -------- (None) > --- PROPULSION (2) --- Flight Unit > --- UTILITY (2) ------ Small Storage Unit > --- WEAPON (2) ------- (None) > --- INVENTORY (8) ---- Ion Engine Light Ion Engine Light Treads Wheel Utility Shielding EM Pulse Gun Small Laser Peak State ------------ > --- POWER ------------ Ion Engine > --- PROPULSION ------- Light Treads Light Treads > --- UTILITY ---------- Improved Heat Sink Small Storage Unit > --- WEAPON ----------- Medium Laser Medium Laser > --- INVENTORY -------- Ion Engine Light Ion Engine Light Treads Wheel Utility Shielding EM Pulse Gun Medium Laser Small Laser [Rating: 9] Favorites ----------- Power Ion Engine Engine Ion Engine Propulsion Light Treads Treads Light Treads Flight Unit Flight Unit Utility Small Storage Unit Device Improved Heat Sink Storage Small Storage Unit Protection Utility Shielding Weapon Medium Laser Energy Gun Medium Laser Ballistic Gun Assault Rifle Build | -11 -10 -10 ------- Run | Yrd Mat Min Slots Evolved . | . . . Power . | . . . Propulsion . | . . . Utility . | . . . Weapon . | . . . Parts Attached 12 | 4 7 1 Power 1 | 1 . . Engine 1 | 1 . . Core . | . . . Reactor . | . . . Propulsion 3 | . 2 1 Treads 2 | . 2 . Leg . | . . . Wheel . | . . . Hover . | . . . Flight 1 | . . 1 Utility 3 | 1 2 . Device 1 | . 1 . Storage 1 | 1 . . Processor . | . . . Hackware . | . . . Protection 1 | . 1 . Artifact . | . . . Weapon 5 | 2 3 . Energy Gun 4 | 1 3 . Energy Cannon . | . . . Ballistic Gun 1 | 1 . . Ballistic Cannon . | . . . Launcher . | . . . Special Weapon . | . . . Impact Weapon . | . . . Slashing Weapon . | . . . Piercing Weapon . | . . . Special Melee Weapon . | . . . Unidentified Prototypes . | . . . Parts Lost 7 | . 1 6 Power 1 | . . 1 Propulsion 2 | . . 2 Utility 1 | . . 1 Weapon 3 | . 1 2 Highest Loss Streak 6 | . 1 6 To Critical Strikes . | . . . Average Backups 6 | 4 7 7 Power 1 | . 1 2 Propulsion 2 | 2 2 2 Utility . | . . 1 Weapon 2 | . 2 2 Tool/Special . | . . . Unused Backups 6 | . 1 5 Power 2 | . . 2 Propulsion 3 | . 1 2 Utility . | . . . Weapon 1 | . . 1 Tool/Special . | . . . Average Slot Usage (%) 86 | . 85 88 Engine 13 | . 14 11 Treads 23 | . 22 24 Device 6 | . 4 12 Storage 14 | . 14 14 Protection 1 | . 1 . Energy Gun 25 | . 26 24 Ballistic Gun 1 | . 1 . Peak Build Rating 9 | 4 9 9 Average Rating 6 | 3 6 7 On Entrance 4 | . 4 9 Avg Prop Armor Cover (%) . | . . . Naked Turns . | . . . Heaviest Build 15 | 13 15 15 Greatest Support 40 | 3 40 40 Greatest Overweight (x) 4 | 4 4 2 Average Overweight (x) . | 2 . . Largest Inventory Capacity 8 | 8 8 8 Average Capacity 7 | 6 8 8 Most Carried 8 | 6 8 7 Average Carried 6 | 4 7 7 Final Capacity 8 | 8 8 8 Final Carried 7 | 6 7 7 Class Distribution -------------------- 100% | Mutant Dominant Class ---------------- Mutant | -10/Materials Mutant | -10/Mines Resources | -11 -10 -10 ----------- Run | Yrd Mat Min Matter Collected 310 | 240 70 . Remotely . | . . . Salvage Created 352 | . 352 . Parts 22 | . 22 . Haulers Intercepted 1 | . 1 . Recyclers Shooed . | . . . Parts Field Recycled . | . . . Retrieved Matter . | . . . Parts Self-Destructed . | . . . Prevented . | . . . Parts Restored . | . . . Kills | -11 -10 -10 ------- Run | Yrd Mat Min Combat Hostiles Destroyed 8 | . 8 . Guns 8 | . 8 . Classes Destroyed 4 | . 4 . Hauler 1 | . 1 . Watcher 2 | . 2 . Swarmer 3 | . 3 . Grunt 5 | . 5 . Best Kill Streak 3 | . 3 . Combat Bots Only 3 | . 3 . Max Kills in Single Turn 1 | . 1 . Gunslinging . | . . . Exploded . | . . . Melee . | . . . Uniques/NPCs Destroyed . | . . . Combat | -11 -10 -10 -------- Run | Yrd Mat Min Hostile Shots Fired 81 | . 58 23 Missed 20 | . 15 5 Hits 61 | . 43 18 Melee 3 | . . 3 Projectile 58 | . 43 15 AOE 11 | . . 11 Damage Taken 1018 | . 475 543 Core 270 | . 76 194 Absorbed by Shields . | . . . Redirected to Shielding 5 | . 5 . Core Remaining (%) 100 | 100 . . Volleys Fired 34 | . 34 . Largest 2 | . 2 . Hottest 100 | . 100 . Shots Fired 67 | . 67 . Gun 67 | . 67 . Cannon . | . . . Launcher . | . . . Special . | . . . Kinetic . | . . . Thermal 67 | . 67 . Explosive . | . . . Electromagnetic . | . . . Robot Hit Streak 10 | . 10 . Robot Miss Streak 6 | . 6 . Penetration Max . | . . . Secondary Targets . | . . . Shots Hit Robots 37 | . 37 . Core Hits 19 | . 19 . Critical Kills . | . . . Critical Parts Destroyed . | . . . Critical Strikes 3 | . 3 . Burn 3 | . 3 . Melee Attacks . | . . . Impact . | . . . Slashing . | . . . Piercing . | . . . Sneak Attacks . | . . . Combat Hostiles . | . . . Follow-up Attacks . | . . . Damage Inflicted 461 | . 455 6 Guns 455 | . 455 . Cannons . | . . . Explosions . | . . . Melee . | . . . Ramming 6 | . . 6 Kinetic . | . . . Thermal 455 | . 455 . Explosive . | . . . Electromagnetic . | . . . Impact . | . . . Slashing . | . . . Piercing . | . . . Highest Corruption 8 | . . 8 Average Corruption 8 | . . 8 Corruption Purged . | . . . Corruption Blocked . | . . . Overload Shots . | . . . Overflow Damage . | . . . Projectiles . | . . . Explosions . | . . . Melee . | . . . Knockbacks . | . . . Impact . | . . . Kinetic . | . . . Secondary . | . . . Self-Inflicted Damage . | . . . Shots . | . . . Rammed 1 | . . 1 Targets Rammed 1 | . . 1 Kicked . | . . . Crushed . | . . . Highest Temperature 240 | . 240 . Average Temperature 73 | . 73 . Received Heat Transfer 233 | . 213 20 Siege Activations . | . . . Martial Activations . | . . . Shielding Activations . | . . . Robots Disrupted . | . . . Combat Hostiles . | . . . Robots Corrupted . | . . . Combat Hostiles . | . . . Parts Fried . | . . . Impact Corruptions . | . . . Robots Melted . | . . . Combat Hostiles . | . . . Parts Melted 3 | . 3 . Heat Transferred 1496 | . 1496 . Parts Sabotaged . | . . . Parts Stolen . | . . . Parts Stripped . | . . . Power Chain Reactions . | . . . Alert | -11 -10 -10 ------- Run | Yrd Mat Min Maximum Alert Level . | . . . Low Security (%) 100 | 100 100 100 Level 1 . | . . . Level 2 . | . . . Level 3 . | . . . Level 4 . | . . . Level 5 . | . . . High Security . | . . . Max Security . | . . . Peak Influence 101 | . 101 29 Initial 29 | . . 29 Average 24 | . 35 6 Influence Increases 226 | . 226 . Destroy 0b10 Robot/C 160 | . 160 . Destroy 0b10 Robot/NC 15 | . 15 . Destroy Leader 36 | . 36 . Lose Combat Pursuer 15 | . 15 . Influence Decreases 226 | . 150 76 Entered New Map 47 | . . 47 Time Decay 169 | . 140 29 Lost Part 10 | . 10 . Squads Dispatched 1 | . 1 . Investigation 1 | . 1 . Extermination . | . . . Reinforcement . | . . . Assault . | . . . Garrison . | . . . Intercept . | . . . Searches Triggered . | . . . Construction Impeded . | . . . Haulers Reinforced . | . . . Active Scanning Responses . | . . . Cargo Convoy Interrupts . | . . . Stealth | -11 -10 -10 --------- Run | Yrd Mat Min Distress Signals . | . . . Communications Jammed . | . . . Distress Signals . | . . . Times Spotted 23 | . 13 10 Peak Tracking Total 6 | . 3 6 Tactical Retreats 1 | . 1 . Traps | -11 -10 -10 ------- Run | Yrd Mat Min Traps Triggered 1 | . 1 . Indirectly . | . . . Trap Hack Attempts . | . . . Triggered . | . . . Disarmed . | . . . Reprogrammed . | . . . Reused . | . . . Traps Extracted . | . . . Installed . | . . . Triggered . | . . . Machines | -11 -10 -10 ---------- Run | Yrd Mat Min Machines Disabled . | . . . Max in Single Turn . | . . . Machines Repaired . | . . . Machines Dismantled . | . . . Machines Sabotaged . | . . . Overloaded Fab Kills . | . . . Hacking | -11 -10 -10 --------- Run | Yrd Mat Min Machines Accessed 2 | . 2 . Terminals 2 | . 2 . Fabricators . | . . . Repair Stations . | . . . Recycling Units . | . . . Scanalyzers . | . . . Garrison Access . | . . . Total Hacks 5 | . 5 . Successful 3 | . 3 . Failed 2 | . 2 . Catastrophic . | . . . Database Lockouts . | . . . Manual 5 | . 5 . Terminals 5 | . 5 . Fabricators . | . . . Repair Stations . | . . . Recycling Units . | . . . Scanalyzers . | . . . Garrison Access . | . . . Terminal Hacks 1 | . 1 . Robot Schematic 1 | . 1 . Fabricator Hacks . | . . . Repair Station Hacks . | . . . Recycling Unit Hacks . | . . . Scanalyzer . | . . . Garrison Access Hacks . | . . . Unauthorized Hacks 2 | . 2 . Terminals 2 | . 2 . Botnet 2 | . 2 . Fabricators . | . . . Repair Stations . | . . . Recycling Units . | . . . Scanalyzers . | . . . Garrison Access . | . . . Data Cores Recovered . | . . . Used . | . . . Hacking Detections 1 | . 1 . Full Trace Events . | . . . Feedback Events . | . . . Feedback Blocked . | . . . Robot Schematics Acquired 1 | . 1 . Robots Built . | . . . Authchips . | . . . Time . | . . . Total Robot Build Rating . | . . . Part Schematics Acquired . | . . . Parts Built . | . . . Authchips . | . . . Time . | . . . Total Part Build Rating . | . . . Part Studies Acquired . | . . . Parts Repaired . | . . . Time . | . . . Parts Recycled . | . . . Recycled Matter . | . . . Retrieved Matter . | . . . Retrieved Components . | . . . Parts Scanalyzed . | . . . Part Schematics Acquired . | . . . Parts Damaged . | . . . Bothacking | -11 -10 -10 ------------ Run | Yrd Mat Min Used RIF Installer . | . . . Robots Hacked . | . . . Non-combat . | . . . Combat . | . . . Robot Hacks Applied . | . . . Relay Couplers Released . | . . . Fabnet Peak Effective % . | . . . Robots Rewired . | . . . Allies Hacked . | . . . Hacks Repelled . | . . . Allies | -11 -10 -10 -------- Run | Yrd Mat Min Total Allies . | . . . Largest Group . | . . . Highest-Rated Group . | . . . Highest-Rated Ally . | . . . Total Orders . | . . . Ally Attacks . | . . . Total Damage . | . . . Kills . | . . . Allies Corrupted . | . . . Allies Melted . | . . . Intel | -11 -10 -10 ------- Run | Yrd Mat Min Active Infowar (turns) . | . . . Robot Analysis Total . | . . . Derelict Logs Recovered 1 | . . 1 Drone Launches . | . . . Drone Recoveries . | . . . Exploration | -11 -10 -10 ------------- Run | Yrd Mat Min Turns Passed 825 | 115 535 175 Spaces Moved 396 | 54 228 114 Core 99 | 54 25 20 Treads 297 | . 203 94 Legs . | . . . Wheels . | . . . Hover . | . . . Flight . | . . . Fastest Speed 50 | 50 160 100 Average Speed 165 | 177 169 150 Slowest Speed 250 | 250 250 160 Overloaded Moves . | . . . Propulsion Burnouts . | . . . Robots Hopped . | . . . Potential Cave-ins . | . . . Cave-ins Triggered . | . . . Exploration Rate (%) 22 | 5 36 26 Regions Visited 2 Branch Regions 1 Pre-discovered Areas . | . . . Known Exits Taken . | . . . Unknown Exits Taken 2 | 1 1 . Scrap Searched . | . . . Spaces Dug . | . . . Terrain Destroyed . | . . . Melee . | . . . Projectile . | . . . AOE . | . . . Terrain Rammed . | . . . Walls Destroyed . | . . . Machines Disabled . | . . . Actions | -11 -10 -10 --------- Run | Yrd Mat Min Total 496 | 72 308 116 Wait 42 | 9 33 . Move 394 | 53 227 114 Hop . | . . . Pick Up 12 | 6 6 . Fast Attach 5 | 4 . 1 Attach 4 | . 4 . Detach . | . . . Swap 3 | . 3 . Drop 1 | . 1 . Fire 34 | . 34 . Melee . | . . . Ram . | . . . Kick . | . . . Crush 1 | . . 1 Escape Stasis . | . . . Rewire . | . . . Trap . | . . . Miscellaneous . | . . . Route ------- -11/Scrapyard -10/Materials -10/Mines (discovered 1 exit: Sub) History --------- Turn | Location | Event 8 | -11/Scrapyard | Discovered new exit (range 16) 116 | -11/Scrapyard | Entered Materials 318 | -10/Materials | Build established: Mutant 341 | -10/Materials | Discovered new exit (range 16) 651 | -10/Materials | Entered Mines 728 | -10/Mines | Identified exit to Subcaves 732 | -10/Mines | Assembled infested the area 812 | -10/Mines | Core integrity fell below 50% 819 | -10/Mines | Core integrity fell below 20% 826 | -10/Mines | Destroyed by D-53 Grenadier with Mini Grenade Launcher Last Messages --------------- 00790_ Ion Engine destroyed. 00792_ The unstable cave ceiling collapses. 00797_ Slammed into as-72122. 00799_ The unstable cave ceiling collapses. 00799_ Med. Laser destroyed. 00799_ as-57904 destroyed. 00801_ Lgt. Treads destroyed. 00801_ Imp. Heat Sink destroyed. 00801_ System corrupted by crushing effect (+4). 00803_ Lgt. Treads destroyed. 00804_ as-72122 destroyed. 00805_ The unstable cave ceiling collapses. 00807_ Med. Laser destroyed. 00813_ The unstable cave ceiling collapses. 00815_ as-60441 destroyed. 00816_ The unstable cave ceiling collapses. 00816_ as-79286 destroyed. 00817_ The unstable cave ceiling collapses. 00825_ Acquired Flight Unit. Map ----- +----------------------------------------------------+ | ???????????????????????????????????????? | | ???????????????????????????????????????? | | ???????????????????????????????????????? | | ???????????????????????????????????????? | | ???????????????????????????????????????? | | ???????????????????????????????????????? | | ???????????????????????????????????????? | | ???????????????????????????????????????? | | ???????????????????????????????????????? | | ???????????????????????????????????????? | | ???????????????????????????????????????? | | ??????????? ???????????????????????????? | | ?????????# ???????????????????????????? | | ?????????# ???????????????????????????? | | ????????## #??????????????????????????? | | ????????# ??????????????????????????? | | ???????## ??????????????????????????? | | ?????### ??????????????????????????? | | ????## ??????????????????????????? | | ????# #?????????????????????????? | | ????? #?????????????????????????? | | ??????? ##????????????????????????? | | ????????? a ##???#???????????????????? | | ??????????# ### #?#####?????????????? | | ???????????# %=[# # #?????????????? | | ???????????# %@* """ #?????????????? | | ??????????## """ #?????????????? | | ??????????# a ### """ #?????????????? | | ??????????# ##?# #?????????????? | | ??????????## a##??# """ #?????????????? | | ???????????### ###?# """ #?????????????? | | ????????????## # ### """ #?????????????? | | ????????????# d # #?????????????? | | ????????????## ##???????????? | | ?????????????## #?????????? | | ??????????????# #?#####???? | | ??????????????# ## # ###?? | | ???????######### # #?? | | ???# ### | | ???????######## # | | ??????????????### # ### | | ????????????????#### # # #?? | | ???????????????????#### #### ### ###?? | | ??????????????????????# #???####??##???? | | ?????????????????????? #??????????????? | | ?????????????????????? ??????????????? | | ?????????????????????? ??????????????? | | ?????????????????????? ??????????????? | | ??????????????????????# ??????????????? | | ???????????????????????# ?????????????? | +----------------------------------------------------+ Best States ------------- Heat Dissipation 39 Energy Generation 10 Energy Capacity 250 Matter Stores 300 Matter Capacity 300 Sight Range 16 Terrain Scan Density 10 Utility Shielding 33 Evasion (%) 50 Recoil Reduction 2 Item Schematics ----------------- None Robot Schematics ------------------ M-13 Machinist | -10/Materials | Hacked Fabricated ------------ Nothing Repaired ---------- Nothing Studied --------- None Alien Tech Used ----------------- None Achievements -------------- None Challenges ------------ None Game ------ Seed PlatingWaveNanosword Manual? 0 Play Time 00:07:02 Cumulative 10.4 hours Start 2025.12.07 @ 13:38:32 End 2025.12.07 @ 13:44:26 Sessions 1 Manual Loads 0 Difficulty Rogue Special Mode None Game No. 11 Rogue 11 Adventurer 0 Explorer 0 Win Type - Total 0 Types 0/0/0/0/0/0/0/0/0/0 Lore% 2 Gallery% 15 Achievement% 17 Wizard Run 0 Options --------- Layout 1 ASCII 0 Keyboard 0 Movement Numpad Keybinds 0 Fullscreen 1 Font 32/SmallcapsGlow Map View 50x35 Zoom Use 0% Tactical HUD 1 Map Filters NONE Filters NONE Steam 1 RUN: edfdf7ae-e0e6-4b0a-afd9-e787adbf3e73